bitfinex/quotes_SOLUSD_20241213
["timestamp","ask_amount","ask_price","bid_price","bid_amount"]
[1734102158730,13.10892384,224.34,224.27,15.79125474]
[1734102158980,13.10892384,224.34,224.3,20.0]
[1734102159213,19.65411384,224.4,224.23,8.57326967]
[1734102159214,13.10892384,224.31,224.23,8.57326967]
[1734102159335,19.65411384,224.4,224.23,1.5843]
[1734102159336,13.10892384,224.29,224.23,1.5843]
[1734102159840,13.10892384,224.29,224.23,14.69322384]
[1734102160030,13.10892384,224.3,224.23,14.69322384]
[1734102160432,13.10892384,224.31,224.25,20.0]
[1734102161039,13.10892384,224.31,224.27,20.0]
[1734102161635,13.10892384,224.31,224.28,20.0]
[1734102162749,13.10892384,224.31,224.25,20.0]
[1734102163140,13.10892384,224.31,224.27,20.0]
[1734102163742,0.12549,224.36,224.25,20.0]
[1734102163743,13.10892384,224.3,224.25,20.0]
[1734102164049,13.10892384,224.4,224.34,20.0]
[1734102164271,0.5341503,224.41,224.34,33.10892384]
[1734102164553,13.10892384,224.4,224.34,20.0]
[1734102164733,13.10892384,224.4,224.36,20.0]
[1734102166364,13.10892384,224.37,224.27,11.147]
[1734102166644,13.10892384,224.32,224.26,19.74892384]
[1734102166865,13.10892384,224.32,224.27,2.64524469]
[1734102167065,13.10892384,224.31,224.27,2.64524469]
[1734102167229,13.10892384,224.31,224.24,13.10892384]
[1734102167927,13.10892384,224.31,224.23,12.7334]
[1734102168128,13.10892384,224.31,224.24,13.10892384]
[1734102168639,13.10892384,224.31,224.25,23.776884]
[1734102169039,13.10892384,224.3,224.24,23.776884]
[1734102169254,13.10892384,224.28,224.23,1.5843]
[1734102169440,13.10892384,224.28,224.24,20.0]
[1734102170160,13.10892384,224.29,224.25,20.0]
[1734102170384,13.10892384,224.26,224.16,6.98896967]
[1734102170537,13.10892384,224.23,224.17,13.10892384]
[1734102171683,13.10892384,224.2,224.15,13.86452496]
[1734102171924,13.10892384,224.19,224.15,13.86452496]
[1734102172173,13.10892384,224.19,224.14,1.5564]
[1734102173256,13.10892384,224.19,224.15,20.0]
[1734102174040,13.10892384,224.19,224.16,20.0]
[1734102174236,13.10892384,224.2,224.16,20.0]
[1734102174982,13.10892384,224.2,224.17,20.0]
[1734102175452,13.10892384,224.22,224.17,20.0]
[1734102175657,13.10892384,224.21,224.18,20.0]
[1734102176257,13.10892384,224.21,224.17,20.0]
[1734102176472,13.10892384,224.23,224.18,20.0]
[1734102176664,13.10892384,224.22,224.18,20.0]
[1734102176846,13.10892384,224.21,224.18,20.0]
[1734102178370,13.10892384,224.22,224.18,20.0]
[1734102178685,13.10892384,224.21,224.18,20.0]
[1734102180092,13.10892384,224.2,224.18,20.0]
[1734102180271,13.10892384,224.19,224.1,24.93330371]
[1734102180446,13.10892384,224.16,224.1,11.1553]
[1734102180669,13.10892384,224.17,224.12,2.61261172]
[1734102181753,13.10892384,224.17,224.13,20.0]
[1734102181951,13.10892384,224.2,224.13,44.26312384]
[1734102182157,13.10892384,224.22,224.18,20.0]
[1734102182369,13.10892384,224.21,224.18,20.0]
[1734102182552,13.10892384,224.2,224.18,20.0]
[1734102182768,13.10892384,224.22,224.17,20.0]
[1734102183224,13.10892384,224.22,224.18,20.0]
[1734102184495,13.10892384,224.23,224.18,20.0]
[1734102185189,13.10892384,224.25,224.2,20.0]
[1734102185361,13.10892384,224.26,224.19,44.26012384]
[1734102185558,13.10892384,224.28,224.22,23.776884]
[1734102185771,13.10892384,224.3,224.23,13.10892384]
[1734102186234,13.10892384,224.29,224.23,23.776884]
[1734102186455,13.10892384,224.28,224.21,33.10892384]
[1734102186795,13.10892384,224.28,224.22,20.0]
[1734102187168,13.10892384,224.29,224.22,33.10892384]
[1734102188171,13.10892384,224.31,224.25,23.776884]
[1734102188368,6.3707,224.38,224.27,23.776884]
[1734102188573,13.10892384,224.34,224.27,36.88580784]
[1734102188777,13.10892384,224.36,224.29,36.88580784]
[1734102188989,13.10892384,224.37,224.3,36.88580784]
[1734102189521,13.10892384,224.37,224.33,20.0]
[1734102190359,13.10892384,224.38,224.33,20.0]
[1734102190671,13.10892384,224.39,224.34,23.776884]
[1734102191085,13.10892384,224.38,224.33,20.0]
[1734102191293,13.10892384,224.37,224.33,20.0]
[1734102191864,13.10892384,224.38,224.34,23.776884]
[1734102192202,13.10892384,224.39,224.34,23.776884]
[1734102192662,13.10892384,224.38,224.33,20.0]
[1734102192866,13.10892384,224.35,224.33,20.0]
[1734102193160,13.10892384,224.34,224.29,6.5803]
[1734102193694,13.10892384,224.3,224.28,1.5908]
[1734102193889,13.10892384,224.31,224.28,1.5908]
[1734102194599,0.5341503,224.41,224.29,13.10892384]
[1734102194935,13.10892384,224.34,224.31,20.0]
[1734102195147,13.10892384,224.34,224.29,23.776884]
[1734102195264,0.5341503,224.41,224.32,20.0]
[1734102195469,0.5341503,224.41,224.33,23.776884]
[1734102195685,13.10892384,224.38,224.33,23.776884]
[1734102195960,13.10892384,224.37,224.33,23.776884]
[1734102197363,13.10892384,224.38,224.33,23.776884]
[1734102197570,13.10892384,224.37,224.33,23.776884]
[1734102198992,13.10892384,224.39,224.33,23.776884]
[1734102199308,0.5341503,224.41,224.36,13.10892384]
[1734102199497,0.5341503,224.41,224.38,20.0]
[1734102200290,0.5341503,224.41,224.37,20.0]
[1734102200480,0.5341503,224.41,224.37,33.10892384]
[1734102200979,13.10892384,224.4,224.34,11.1437]
[1734102201184,13.10892384,224.38,224.34,11.1437]
[1734102201496,13.64307414,224.41,224.34,24.25262384]
[1734102202689,13.64307414,224.41,224.37,13.10892384]
[1734102202690,0.5341503,224.41,224.37,13.10892384]
[1734102202880,0.5341503,224.41,224.37,20.0]
[1734102203078,0.5341503,224.41,224.38,20.0]
[1734102203489,13.10892384,224.4,224.34,30.90952384]
[1734102203696,0.5341503,224.41,224.36,13.10892384]
[1734102204203,0.5341503,224.41,224.37,13.10892384]
[1734102204614,0.5341503,224.41,224.38,13.10892384]
[1734102205178,0.5341503,224.41,224.38,20.0]
[1734102205382,0.5341503,224.41,224.36,13.10892384]
[1734102205897,0.5341503,224.41,224.37,13.10892384]
[1734102206498,14.64892384,224.51,224.36,24.25172384]
[1734102206499,11.64307414,224.43,224.36,24.25172384]
[1734102207018,13.10892384,224.39,224.33,13.10892384]
[1734102207317,13.10892384,224.37,224.32,11.1444]
[1734102207516,13.10892384,224.35,224.29,13.10892384]
[1734102207990,13.10892384,224.34,224.28,19.1867]
[1734102208128,13.10892384,224.32,224.28,12.7371]
[1734102208276,13.10892384,224.3,224.24,11.1483]
[1734102208480,13.10892384,224.29,224.24,11.1483]
[1734102208904,13.10892384,224.3,224.24,11.1483]
[1734102209400,13.10892384,224.3,224.24,24.25722384]
[1734102210085,6.4088,224.37,224.24,24.25722384]
[1734102210086,13.10892384,224.29,224.24,11.1483]
[1734102210281,13.10892384,224.28,224.24,11.1483]
[1734102210483,13.10892384,224.28,224.21,14.61862384]
[1734102211697,13.10892384,224.28,224.24,20.0]
[1734102211887,13.10892384,224.29,224.23,20.0]
[1734102212988,13.10892384,224.29,224.23,33.10892384]
[1734102213188,0.12549,224.28,224.23,20.0]
[1734102214383,13.10892384,224.29,224.23,33.10892384]
[1734102214511,13.10892384,224.3,224.23,44.25802384]
[1734102215298,13.10892384,224.29,224.23,31.1491]
[1734102215510,13.10892384,224.31,224.24,13.10892384]
[1734102216099,13.10892384,224.3,224.23,44.25802384]
[1734102216297,13.10892384,224.29,224.23,31.1491]
[1734102216919,13.10892384,224.28,224.23,31.1491]
[1734102217336,13.10892384,224.27,224.23,20.0]
[1734102218310,13.10892384,224.27,224.22,20.0]
[1734102218518,13.10892384,224.29,224.23,13.10892384]
[1734102218707,13.10892384,224.31,224.25,23.776884]
[1734102219105,13.10892384,224.31,224.24,13.10892384]
[1734102219319,13.10892384,224.3,224.23,13.10892384]
[1734102220012,13.10892384,224.3,224.24,13.10892384]
[1734102220206,13.10892384,224.32,224.26,13.10892384]
[1734102220922,13.10892384,224.33,224.26,13.10892384]
[1734102221120,13.10892384,224.33,224.27,23.776884]
[1734102222230,13.10892384,224.34,224.27,13.10892384]
[1734102222614,13.10892384,224.33,224.26,36.88580784]
[1734102223097,13.10892384,224.32,224.26,23.776884]
[1734102223502,13.10892384,224.34,224.28,13.10892384]
[1734102223849,13.10892384,224.36,224.29,13.10892384]
[1734102223949,13.10892384,224.39,224.32,13.10892384]
[1734102224728,13.10892384,224.42,224.35,13.10892384]
[1734102225408,13.10892384,224.4,224.33,33.10892384]
[1734102225808,13.10892384,224.41,224.34,36.88580784]
[1734102226007,13.10892384,224.44,224.37,33.10892384]
[1734102226203,13.10892384,224.51,224.38,13.10892384]
[1734102226204,13.10892384,224.45,224.38,13.10892384]
[1734102227420,13.10892384,224.51,224.38,13.10892384]
[1734102227421,13.10892384,224.46,224.39,13.10892384]
[1734102227610,1.532,224.52,224.42,13.10892384]
[1734102227811,13.10892384,224.5,224.43,36.88580784]
[1734102228019,13.10892384,224.51,224.44,13.10892384]
[1734102228420,13.10892384,224.5,224.43,36.88580784]
[1734102229816,13.10892384,224.51,224.44,13.10892384]
[1734102230153,13.10892384,224.5,224.43,13.10892384]
[1734102232359,13.10892384,224.51,224.44,13.10892384]
[1734102232535,13.10892384,224.5,224.43,13.10892384]
[1734102234233,13.10892384,224.46,224.41,23.776884]
[1734102234750,13.10892384,224.47,224.4,24.24972384]
[1734102234954,13.10892384,224.47,224.43,20.0]
[1734102235134,13.10892384,224.44,224.38,13.10892384]
[1734102236071,13.10892384,224.45,224.39,13.10892384]
[1734102236466,13.10892384,224.46,224.4,36.88580784]
[1734102236645,13.10892384,224.47,224.41,13.10892384]
[1734102236984,0.25098,224.54,224.43,13.10892384]
[1734102237140,13.10892384,224.51,224.44,36.88580784]
[1734102238166,13.10892384,224.49,224.43,13.10892384]
[1734102238353,13.10892384,224.49,224.42,33.10892384]
[1734102238781,13.10892384,224.49,224.42,13.10892384]
[1734102238954,13.10892384,224.5,224.43,33.10892384]
[1734102239148,13.10892384,224.48,224.43,20.0]
[1734102239355,13.10892384,224.49,224.43,20.0]
[1734102239665,13.10892384,224.5,224.43,33.10892384]
[1734102240056,12.91892384,224.5,224.43,33.10892384]
[1734102240563,13.10892384,224.48,224.43,20.0]
[1734102241247,13.10892384,224.46,224.43,20.0]
[1734102241449,13.10892384,224.47,224.43,20.0]
[1734102241675,13.10892384,224.46,224.39,24.25002384]
[1734102242157,13.10892384,224.47,224.4,13.10892384]
[1734102242968,15.0,224.57,224.37,6.6342]
[1734102243339,13.10892384,224.52,224.45,13.10892384]
[1734102243467,13.10892384,224.53,224.46,13.10892384]
[1734102243656,13.10892384,224.51,224.44,36.88580784]
[1734102244189,13.10892384,224.48,224.43,1.5353]
[1734102244492,0.12549,224.57,224.44,23.776884]
[1734102244655,13.10892384,224.52,224.45,13.10892384]
[1734102245468,13.10892384,224.51,224.44,48.02420784]
[1734102245673,13.10892384,224.52,224.45,13.10892384]
[1734102246261,15.0,224.65,224.5,13.10892384]
[1734102246462,13.10892384,224.58,224.51,13.10892384]
[1734102246983,13.10892384,224.57,224.5,13.10892384]
[1734102247181,13.10892384,224.55,224.48,13.10892384]
[1734102247381,28.23441195,224.62,224.47,24.24622384]
[1734102247382,13.10892384,224.54,224.47,24.24622384]
[1734102247575,13.10892384,224.55,224.48,13.10892384]
[1734102248285,13.10892384,224.55,224.49,13.10892384]
[1734102248484,13.10892384,224.56,224.49,13.10892384]
[1734102248862,13.10892384,224.57,224.5,13.10892384]
[1734102250487,13.10892384,224.59,224.52,13.10892384]
[1734102250683,13.10892384,224.59,224.53,23.776884]
[1734102251386,13.10892384,224.59,224.53,13.10892384]
[1734102251589,13.10892384,224.6,224.53,13.10892384]
[1734102252089,13.10892384,224.55,224.52,21.5268]
[1734102252387,13.10892384,224.53,224.47,1.5268]
[1734102252563,13.10892384,224.52,224.49,20.0]
[1734102252772,13.10892384,224.54,224.49,20.0]
[1734102253188,13.10892384,224.5,224.47,1.5268]
[1734102253372,13.10892384,224.49,224.45,11.1383]
[1734102254082,13.10892384,224.48,224.42,1.6029]
[1734102254358,13.10892384,224.49,224.42,14.71182384]
[1734102254591,13.10892384,224.51,224.44,13.10892384]
[1734102255011,6.02313039,224.51,224.44,13.10892384]
[1734102256079,13.10892384,224.53,224.47,13.10892384]
[1734102256284,13.10892384,224.56,224.51,20.0]
[1734102256499,13.10892384,224.57,224.51,20.0]
[1734102256691,13.10892384,224.58,224.51,33.10892384]
[1734102258388,13.10892384,224.57,224.51,33.10892384]
[1734102258778,13.10892384,224.59,224.52,13.10892384]
[1734102258980,13.10892384,224.58,224.51,33.10892384]
[1734102259399,13.10892384,224.59,224.52,49.65630784]
[1734102259608,13.10892384,224.61,224.54,13.10892384]
[1734102260304,13.10892384,224.59,224.52,49.65630784]
[1734102261704,13.10892384,224.6,224.53,13.10892384]
[1734102262207,13.10892384,224.61,224.54,48.01960784]
[1734102262395,13.10892384,224.63,224.56,13.10892384]
[1734102262788,13.10892384,224.62,224.55,36.88580784]
[1734102265017,13.10892384,224.6,224.54,11.1338]
[1734102265505,13.10892384,224.61,224.54,24.24272384]
[1734102266922,13.10892384,224.59,224.52,14.74462384]
[1734102267401,0.5341503,224.64,224.47,24.24572384]
[1734102267402,13.10892384,224.54,224.47,24.24572384]
[1734102267605,13.10892384,224.55,224.48,13.10892384]
[1734102268682,0.12549,224.61,224.49,13.10892384]
[1734102268878,30.53414841,224.64,224.47,11.1368]
[1734102268879,13.10892384,224.59,224.52,13.10892384]
[1734102270381,13.10892384,224.6,224.53,13.10892384]
[1734102270796,0.25098,224.63,224.53,13.10892384]
[1734102270797,13.10892384,224.61,224.54,13.10892384]
[1734102272595,13.10892384,224.62,224.55,13.10892384]
[1734102274920,13.10892384,224.59,224.52,24.24342384]
[1734102275210,13.10892384,224.58,224.54,20.0]
[1734102275596,13.10892384,224.59,224.54,20.0]
[1734102276011,13.10892384,224.59,224.52,13.10892384]
[1734102276012,13.10892384,224.6,224.53,13.10892384]
[1734102279203,13.10892384,224.59,224.53,20.0]
[1734102279525,13.10892384,224.58,224.52,23.776884]
[1734102280220,0.5341503,224.64,224.58,23.776884]
[1734102280423,0.5341503,224.64,224.62,13.10892384]
[1734102281306,0.5341503,224.64,224.63,8.1186]
[1734102282920,0.5341503,224.64,224.63,1.6139]
[1734102285117,0.5341503,224.64,224.63,38.49970784]
[1734102286416,0.5341503,224.64,224.63,25.390784]
[1734102286621,0.5341503,224.64,224.63,21.6139]
[1734102286834,0.5341503,224.64,224.63,1.6139]
[1734102287933,0.5341503,224.64,224.62,20.0]
[1734102288424,0.5341503,224.64,224.59,13.10892384]
[1734102288629,0.5341503,224.64,224.58,19.61362384]
[1734102289127,0.5341503,224.64,224.6,13.10892384]
[1734102289525,0.5341503,224.64,224.59,13.10892384]
[1734102289831,0.5341503,224.64,224.58,19.61362384]
[1734102290127,0.5341503,224.64,224.57,1.6295]
[1734102290128,13.10892384,224.61,224.57,1.6295]
[1734102290429,13.10892384,224.61,224.54,13.10892384]
[1734102290841,13.10892384,224.6,224.53,13.10892384]
[1734102291324,13.10892384,224.61,224.54,13.10892384]
[1734102292029,13.10892384,224.6,224.54,20.0]
[1734102292224,0.5341503,224.64,224.52,1.5143]
[1734102292225,13.10892384,224.57,224.52,1.5143]
[1734102292606,13.10892384,224.56,224.52,1.5143]
[1734102292813,13.10892384,224.56,224.49,13.10892384]
[1734102293014,13.10892384,224.56,224.49,15.75471989]
[1734102294112,13.10892384,224.57,224.5,13.10892384]
[1734102294314,0.25098,224.61,224.51,13.10892384]
[1734102294529,13.10892384,224.57,224.5,13.10892384]
[1734102294833,0.12549,224.61,224.51,13.10892384]
[1734102295126,13.10892384,224.58,224.51,13.10892384]
[1734102295335,13.10892384,224.57,224.5,13.10892384]
[1734102295509,13.10892384,224.56,224.49,35.75471989]
[1734102295707,0.25098,224.63,224.49,35.75471989]
[1734102295909,13.10892384,224.57,224.5,13.10892384]
[1734102296333,13.10892384,224.58,224.51,13.10892384]
[1734102297108,13.10892384,224.57,224.5,13.10892384]
[1734102297909,13.10892384,224.57,224.49,35.75471989]
[1734102298423,13.10892384,224.56,224.49,33.10892384]
[1734102298624,13.10892384,224.56,224.49,20.0]
[1734102299636,13.10892384,224.55,224.49,20.0]
[1734102299811,13.10892384,224.52,224.47,1.6469]
[1734102300021,13.10892384,224.52,224.46,6.6414]
[1734102300022,13.10892384,224.51,224.44,15.77137471]
[1734102300913,13.10892384,224.51,224.44,13.10892384]
[1734102301120,13.10892384,224.51,224.42,1.6476]
[1734102301121,13.10892384,224.5,224.42,14.75652384]
[1734102301432,26.25778811,224.57,224.42,14.75652384]
[1734102301433,8.38434781,224.47,224.42,1.6476]
[1734102301630,0.25098,224.54,224.42,1.6476]
[1734102301834,8.38434781,224.49,224.42,10.03194781]
[1734102302220,11.1323,224.57,224.43,8.38434781]
[1734102302426,8.38434781,224.5,224.42,10.03194781]
[1734102302930,8.38434781,224.49,224.42,10.03194781]
[1734102303228,13.10470623,224.44,224.37,1.5556]
[1734102303437,13.10470623,224.43,224.37,1.5556]
[1734102304121,13.10470623,224.42,224.37,1.5556]
[1734102304516,13.10470623,224.45,224.38,13.10470623]
[1734102305143,13.10470623,224.49,224.42,13.10470623]
[1734102305321,13.10470623,224.5,224.43,13.10470623]
[1734102306022,13.10470623,224.49,224.42,33.10470623]
[1734102306325,13.10470623,224.48,224.42,20.0]
[1734102306536,13.10470623,224.45,224.38,24.24650623]
[1734102306838,13.10470623,224.46,224.39,13.10470623]
[1734102308315,13.10470623,224.43,224.39,20.0]
[1734102308726,13.10470623,224.43,224.37,1.5556]
[1734102310544,13.10470623,224.41,224.37,1.5556]
[1734102310736,13.10470623,224.39,224.36,30.0]
[1734102311431,13.10470623,224.4,224.36,30.0]
[1734102311643,13.10470623,224.41,224.36,30.0]
[1734102312446,13.10470623,224.4,224.36,30.0]
[1734102313649,13.10470623,224.38,224.36,30.0]
[1734102314345,1.5019,224.49,224.36,30.0]
[1734102314346,13.10470623,224.41,224.36,30.0]
[1734102314517,13.10470623,224.42,224.36,30.0]
[1734102314719,13.10470623,224.43,224.36,43.10470623]
[1734102314921,13.10470623,224.43,224.37,11.1423]
[1734102315222,13.10470623,224.43,224.38,23.776884]
[1734102315431,13.10470623,224.4,224.37,11.1423]
[1734102315623,13.10470623,224.4,224.36,30.0]
[1734102315817,13.10470623,224.38,224.36,30.0]
[1734102316336,13.10470623,224.39,224.36,30.0]
[1734102317443,13.10470623,224.38,224.36,30.0]
[1734102319348,13.10470623,224.39,224.36,30.0]
[1734102319848,13.10470623,224.4,224.36,30.0]
[1734102320046,13.10470623,224.39,224.36,30.0]
[1734102320231,13.10470623,224.4,224.36,30.0]
[1734102320427,13.10470623,224.41,224.36,30.0]
[1734102321141,13.10470623,224.42,224.36,41.1425]
[1734102321442,1.5019,224.49,224.37,23.776884]
[1734102321443,13.10470623,224.43,224.37,23.776884]
[1734102321620,13.10470623,224.46,224.39,13.10470623]
[1734102321823,13.10470623,224.49,224.42,13.10470623]
[1734102322025,13.10470623,224.51,224.44,13.10470623]
[1734102322224,13.10470623,224.51,224.44,24.24350623]
[1734102322434,13.10470623,224.49,224.44,11.1388]
[1734102323231,13.10470623,224.48,224.44,11.1388]
[1734102324230,13.10470623,224.49,224.44,11.1388]
[1734102324625,13.10470623,224.5,224.44,11.1388]
[1734102324831,13.10470623,224.53,224.46,24.24250623]
[1734102328651,13.10470623,224.51,224.47,20.0]
[1734102329044,13.10470623,224.52,224.47,20.0]
[1734102329244,13.10470623,224.55,224.48,36.88159023]
[1734102329556,13.10470623,224.58,224.51,13.10470623]
[1734102330099,13.10470623,224.57,224.51,20.0]
[1734102330357,13.10470623,224.57,224.5,13.10470623]
[1734102330653,13.10470623,224.55,224.52,20.0]
[1734102331360,13.10470623,224.56,224.52,20.0]
[1734102332553,13.10470623,224.54,224.5,20.0]
[1734102333163,13.10470623,224.54,224.48,33.10470623]
[1734102333354,13.10470623,224.55,224.48,33.10470623]
[1734102334068,13.10470623,224.55,224.5,20.0]
[1734102334756,13.10470623,224.56,224.5,20.0]
[1734102335254,13.10470623,224.57,224.51,13.10470623]
[1734102335860,13.10470623,224.57,224.5,44.24050623]
[1734102336179,13.10470623,224.53,224.5,20.0]
[1734102336356,13.10470623,224.52,224.49,20.0]
[1734102336671,13.10470623,224.53,224.49,20.0]
[1734102336853,13.10470623,224.5,224.46,11.1374]
[1734102337056,13.10470623,224.5,224.44,23.776884]
[1734102337667,13.10470623,224.5,224.44,36.88159023]
[1734102338171,13.10470623,224.52,224.45,24.24290623]
[1734102338558,13.10470623,224.53,224.46,36.88159023]
[1734102338764,13.10470623,224.55,224.48,13.10470623]
[1734102338972,13.10470623,224.56,224.49,13.10470623]
[1734102339222,13.10470623,224.5,224.45,11.1382]
[1734102339476,13.10470623,224.46,224.44,20.0]
[1734102341781,13.10470623,224.47,224.44,20.0]
[1734102341961,13.10470623,224.45,224.37,11.1419]
[1734102342155,13.10470623,224.51,224.37,11.1419]
[1734102342156,13.10470623,224.43,224.37,11.1419]
[1734102342381,13.10470623,224.43,224.37,13.82763593]
[1734102343076,13.10470623,224.42,224.36,30.0]
[1734102343276,13.10470623,224.4,224.36,30.0]
[1734102345164,13.10470623,224.41,224.36,30.0]
[1734102345880,13.10470623,224.39,224.36,30.0]
[1734102346180,0.12549,224.46,224.36,30.0]
[1734102346181,13.10470623,224.37,224.36,30.0]
[1734102349886,13.23019623,224.37,224.36,30.0]
[1734102350097,13.35568623,224.37,224.36,30.0]
[1734102350784,0.12549,224.35,224.24,1.5341]
[1734102350966,13.10470623,224.28,224.24,1.5341]
[1734102351663,13.10470623,224.26,224.19,13.10470623]
[1734102351883,13.10470623,224.21,224.13,11.1539]
[1734102352197,13.10470623,224.17,224.12,1.5356]
[1734102352481,13.10470623,224.16,224.12,1.5356]
[1734102352868,13.10470623,224.15,224.12,1.5356]
[1734102353066,13.10470623,224.15,224.08,13.10470623]
[1734102353280,22.8935,224.26,224.01,11.1601]
[1734102353281,13.10470623,224.11,224.01,11.1601]
[1734102353494,13.10470623,224.1,224.03,13.10470623]
[1734102354001,13.10470623,224.13,224.06,13.10470623]
[1734102354176,13.10470623,224.15,224.09,13.10470623]
[1734102354374,7.8935,224.26,224.11,13.10470623]
[1734102354375,13.10470623,224.18,224.11,13.10470623]
[1734102354571,13.10470623,224.2,224.13,13.10470623]
[1734102354879,13.10470623,224.21,224.14,13.10470623]
[1734102355283,13.10470623,224.2,224.13,13.10470623]
[1734102355488,13.10470623,224.19,224.12,13.10470623]
[1734102356670,13.10470623,224.16,224.1,24.26010623]
[1734102356871,13.10470623,224.16,224.09,13.10470623]
[1734102357073,14.99999811,224.23,224.06,11.1575]
[1734102357074,13.10470623,224.15,224.08,13.10470623]
[1734102357276,13.10470623,224.12,224.06,11.1575]
[1734102357685,13.10470623,224.14,224.07,13.10470623]
[1734102357894,13.10470623,224.11,224.05,13.10470623]
[1734102358271,13.10470623,224.11,224.04,13.10470623]
[1734102358490,13.10470623,224.1,224.03,13.10470623]
[1734102358672,13.10470623,224.09,224.02,24.26410623]
[1734102358866,13.10470623,224.1,224.03,13.10470623]
[1734102359514,13.10470623,224.07,224.0,6.2607]
[1734102359888,13.10470623,224.07,224.0,19.36540623]
[1734102360184,13.10470623,224.09,224.02,13.10470623]
[1734102360399,13.10470623,224.07,224.0,19.36540623]
[1734102360579,14.99999811,224.14,223.98,13.10470623]
[1734102360580,13.10470623,224.05,223.98,13.10470623]
[1734102360780,13.10470623,224.03,223.96,13.10470623]
[1734102360993,15.0,224.11,223.95,6.5418]
[1734102360994,13.10470623,224.02,223.95,19.64650623]
[1734102361478,13.10470623,224.01,223.95,19.64650623]
[1734102361693,13.10470623,224.01,223.95,6.5418]
[1734102361877,13.10470623,224.0,223.95,6.5418]
[1734102362080,13.10470623,224.07,223.91,13.10470623]
[1734102362081,13.10470623,223.98,223.91,13.10470623]
[1734102362605,13.10470623,223.95,223.89,19.66770623]
[1734102362801,13.10470623,223.92,223.87,1.5035]
[1734102362990,13.10470623,223.89,223.85,0.5341503]
[1734102363370,6.6332,224.0,223.85,0.5341503]
[1734102363371,13.10470623,223.88,223.85,0.5341503]
[1734102363573,13.10470623,223.89,223.85,0.5341503]
[1734102364200,13.10470623,223.88,223.85,0.5341503]
[1734102364379,0.12549,223.95,223.85,0.5341503]
[1734102364380,13.10470623,223.89,223.85,0.5341503]
[1734102364579,13.10470623,223.9,223.85,0.5341503]
[1734102365002,13.10470623,223.89,223.85,0.5341503]
[1734102365508,0.12549,223.95,223.85,0.5341503]
[1734102365509,13.10470623,223.86,223.85,0.5341503]
[1734102366496,13.10470623,223.87,223.85,0.5341503]
[1734102366874,13.10470623,223.89,223.85,0.5341503]
[1734102367081,13.10470623,223.9,223.85,0.5341503]
[1734102367772,14.99999811,224.01,223.87,13.10470623]
[1734102367971,13.10470623,223.92,223.86,11.1676]
[1734102368183,13.10470623,223.91,223.85,20.5341503]
[1734102368383,13.10470623,223.87,223.85,0.5341503]
[1734102368582,13.10470623,223.96,223.85,0.5341503]
[1734102368785,21.63319811,224.0,223.85,0.5341503]
[1734102368985,36.63319811,224.0,223.85,0.5341503]
[1734102369298,0.12549,223.99,223.85,0.5341503]
[1734102369804,0.25098,223.99,223.85,0.5341503]
[1734102370101,13.10470623,223.92,223.85,13.63885653]
[1734102370486,13.10470623,223.92,223.86,13.10470623]
[1734102370817,14.99999811,224.03,223.9,13.10470623]
[1734102371117,13.10470623,223.98,223.91,13.10470623]
[1734102371302,13.10470623,223.95,223.88,13.10470623]
[1734102371517,13.10470623,223.93,223.87,31.1671]
[1734102371735,13.10470623,223.94,223.87,44.27180623]
[1734102372295,13.10470623,223.97,223.91,13.10470623]
[1734102372498,13.10470623,223.99,223.92,13.10470623]
[1734102372698,13.10470623,223.96,223.9,13.10470623]
[1734102372914,13.10470623,223.93,223.87,31.1671]
[1734102373117,13.10470623,223.91,223.87,20.0]
[1734102373502,13.10470623,223.92,223.87,20.0]
[1734102373818,49.92112098,224.06,223.9,13.10470623]
[1734102373819,0.12549,223.99,223.9,13.10470623]
[1734102374003,13.10470623,223.97,223.9,13.10470623]
[1734102374518,13.10470623,223.97,223.91,13.10470623]
[1734102374718,13.10470623,223.99,223.92,13.10470623]
[1734102374914,13.10470623,224.01,223.94,13.10470623]
[1734102375504,13.10470623,224.06,223.99,13.10470623]
[1734102375698,13.10470623,224.05,223.98,13.10470623]
[1734102375916,13.10470623,224.07,224.0,13.10470623]
[1734102376115,13.10470623,224.09,224.02,13.10470623]
[1734102376299,23.01069811,224.17,224.03,13.10470623]
[1734102376300,13.10470623,224.1,224.03,13.10470623]
[1734102376708,13.10470623,224.08,224.01,13.10470623]
[1734102377120,13.10470623,224.09,224.02,33.10470623]
[1734102377420,13.10470623,224.09,224.02,13.10470623]
[1734102378430,13.10470623,224.1,224.03,13.10470623]
[1734102378628,13.10470623,224.11,224.03,13.10470623]
[1734102378818,13.10470623,224.11,224.04,13.10470623]
[1734102379211,13.10470623,224.14,224.06,13.10470623]